bitfinex/quotes_BTCUSD_20251209
["timestamp","ask_amount","ask_price","bid_price","bid_amount"]
[1765285727890,1.02553318,90664.0,90663.0,0.0012372]
[1765285728106,1.02553318,90664.0,90663.0,0.0002372]
[1765285728287,1.01244069,90664.0,90663.0,0.0002372]
[1765285729308,1.01344069,90664.0,90663.0,0.0002372]
[1765285729510,1.01544069,90664.0,90663.0,0.0002372]
[1765285729709,1.01344069,90664.0,90663.0,0.0002372]
[1765285730139,1.01644069,90664.0,90663.0,0.0002372]
[1765285730337,1.01344069,90664.0,90663.0,0.0002372]
[1765285730534,1.01244069,90664.0,90663.0,0.0002372]
[1765285730749,1.01444069,90664.0,90663.0,0.0002372]
[1765285733810,1.12494831,90664.0,90663.0,0.0002372]
[1765285734574,1.01444069,90664.0,90663.0,0.0002372]
[1765285735767,1.07696368,90664.0,90663.0,0.0002372]
[1765285736975,1.07496368,90664.0,90663.0,0.0002372]
[1765285737319,1.07796368,90664.0,90663.0,0.0002372]
[1765285737524,1.07896368,90664.0,90663.0,0.0002372]
[1765285737975,1.1884713,90664.0,90663.0,0.0002372]
[1765285738194,1.07796368,90664.0,90663.0,0.0002372]
[1765285738399,1.07996368,90664.0,90663.0,0.0002372]
[1765285738709,1.07696368,90664.0,90663.0,0.0002372]
[1765285738911,1.08196368,90664.0,90663.0,0.0002372]
[1765285739059,1.07696368,90664.0,90663.0,0.0002372]
[1765285739500,1.07796368,90664.0,90663.0,0.0002372]
[1765285739864,1.07996368,90664.0,90663.0,0.0002372]
[1765285742451,1.1904713,90664.0,90663.0,0.0002372]
[1765285743553,1.07996368,90664.0,90663.0,0.0002372]
[1765285752143,1.1036814,90664.0,90663.0,0.0002372]
[1765285755205,1.1036814,90664.0,90639.0,0.23168749]
[1765285755206,0.22065057,90642.0,90639.0,0.23168749]
[1765285755367,0.55397753,90641.0,90639.0,0.00146243]
[1765285755574,0.55397987,90640.0,90639.0,0.00146243]
[1765285755802,0.55397987,90640.0,90632.0,0.01103363]
[1765285755803,0.22067504,90631.0,90630.0,0.0002]
[1765285755979,0.23100178,90631.0,90630.0,0.0002]
[1765285756177,0.23100178,90631.0,90630.0,0.00117883]
[1765285756552,0.24203674,90631.0,90630.0,0.00117883]
[1765285758009,0.24203674,90631.0,90630.0,0.00817883]
[1765285758250,0.24203674,90631.0,90630.0,0.00417883]
[1765285758410,0.24203674,90631.0,90630.0,0.00117883]
[1765285758612,0.24203674,90631.0,90630.0,0.00417883]
[1765285759164,0.24203674,90631.0,90630.0,0.00617883]
[1765285764296,0.66647192,90631.0,90630.0,0.00617883]
[1765285764494,2.14609792,90631.0,90630.0,0.00617883]
[1765285764672,1.83263092,90631.0,90630.0,0.00617883]
[1765285764885,1.7143893,90631.0,90630.0,0.00617883]
[1765285765067,1.7143893,90631.0,90630.0,0.00417883]
[1765285765420,1.4682153,90631.0,90630.0,0.00217883]
[1765285766085,1.3452993,90631.0,90630.0,0.00217883]
[1765285766682,1.2201393,90631.0,90630.0,0.00117883]
[1765285768775,1.33064692,90631.0,90630.0,0.00117883]
[1765285768981,1.2201393,90631.0,90630.0,0.00117883]
[1765285770511,1.28266229,90631.0,90630.0,0.00117883]
[1765285770863,0.54369939,90621.0,90620.0,0.0002]
[1765285771053,2.58142069,90621.0,90620.0,0.0002]
[1765285771252,2.64394368,90621.0,90620.0,0.0002]
[1765285771660,2.17497799,90621.0,90620.0,0.0002]
[1765285772634,2.27682893,90621.0,90620.0,0.0002]
[1765285773041,2.17697799,90621.0,90620.0,0.0002]
[1765285773464,2.17997799,90621.0,90620.0,0.0002]
[1765285773700,1.25703899,90621.0,90620.0,0.0002]
[1765285773905,1.25603899,90621.0,90620.0,0.0002]
[1765285774244,1.25903899,90621.0,90620.0,0.0002]
[1765285774627,1.36954661,90621.0,90620.0,0.0002]
[1765285775048,1.23772661,90621.0,90620.0,0.0002]
[1765285775252,1.02542799,90621.0,90620.0,0.0002]
[1765285775429,1.00802799,90621.0,90620.0,0.0002]
[1765285775633,1.03552131,90621.0,90620.0,0.0002]
[1765285775917,0.23302613,90621.0,90620.0,0.0002]
[1765285776179,0.23402613,90621.0,90620.0,0.0002]
[1765285776390,0.003,90621.0,90620.0,0.0002]
[1765285776552,0.002,90621.0,90620.0,0.00195913]
[1765285776783,0.002,90621.0,90620.0,0.22266096]
[1765285776999,0.003,90621.0,90620.0,0.22266096]
[1765285777210,0.001,90621.0,90620.0,0.22266096]
[1765285777414,0.002,90621.0,90620.0,0.22266096]
[1765285777773,0.001,90621.0,90620.0,0.22266096]
[1765285781677,0.001,90621.0,90620.0,0.00195913]
[1765285781880,0.22169939,90621.0,90620.0,0.00195913]
[1765285784362,0.001,90621.0,90620.0,0.00195913]
[1765285784775,0.22169939,90621.0,90620.0,0.00195913]
[1765285786080,0.22169939,90621.0,90620.0,0.00204838]
[1765285787129,0.24378727,90621.0,90620.0,0.00204838]
[1765285787342,0.22169939,90621.0,90620.0,0.00058595]
[1765285788751,0.001,90621.0,90620.0,0.00058595]
[1765285788897,0.22169939,90621.0,90620.0,0.00058595]
[1765285789100,0.001,90621.0,90620.0,0.00204838]
[1765285789502,0.22169939,90621.0,90620.0,0.00204838]
[1765285794381,0.24378727,90621.0,90620.0,0.00204838]
[1765285796032,0.22169939,90621.0,90620.0,0.00204838]
[1765285801332,0.24378727,90621.0,90620.0,0.00204838]
[1765285801652,0.22169939,90621.0,90620.0,0.00204838]
[1765285803225,0.22169939,90621.0,90620.0,0.22275021]
[1765285803226,0.001,90621.0,90620.0,0.22275021]
[1765285803838,0.001,90621.0,90620.0,0.24472647]
[1765285804219,0.001,90621.0,90620.0,0.22275021]
[1765285809696,0.001,90621.0,90620.0,0.24015021]
[1765285810526,0.001,90621.0,90620.0,0.00204838]
[1765285810749,0.001,90621.0,90620.0,0.22275021]
[1765285816037,0.001,90621.0,90620.0,0.24472647]
[1765285816438,0.001,90621.0,90620.0,0.22275021]
[1765285817038,0.001,90621.0,90620.0,0.32275021]
[1765285818239,0.001,90621.0,90620.0,0.34472647]
[1765285818443,0.001,90621.0,90620.0,0.32275021]
[1765285819254,0.23170417,90633.0,90631.0,0.22067439]
[1765285819645,0.23170417,90633.0,90630.0,0.23170951]
[1765285820540,0.23370417,90633.0,90630.0,0.23170951]
[1765285820747,0.0130335,90633.0,90630.0,0.01103387]
[1765285820961,0.002,90633.0,90631.0,0.22067504]
[1765285821166,0.005,90633.0,90632.0,0.22067261]
[1765285822020,0.01103326,90635.0,90633.0,0.22066866]
[1765285822220,0.23169522,90637.0,90634.0,0.23170112]
[1765285822422,0.01103314,90636.0,90630.0,0.23171128]
[1765285822643,0.23169634,90636.0,90634.0,0.22066767]
[1765285822830,0.01103314,90636.0,90633.0,0.22067015]
[1765285823027,0.0110329,90638.0,90636.0,0.2206622]
[1765285823253,0.22065772,90639.0,90636.0,0.22066065]
[1765285824131,0.23169049,90639.0,90636.0,0.23169379]
[1765285824477,0.004,90637.0,90636.0,0.23169379]
[1765285824680,0.23169049,90639.0,90632.0,0.23170588]
[1765285824681,0.22066545,90635.0,90632.0,0.23170588]
[1765285824828,0.23169871,90635.0,90632.0,0.23170588]
[1765285825667,0.01103387,90630.0,90627.0,0.01103423]
[1765285825862,0.26103387,90630.0,90624.0,0.0110346]
[1765285826067,0.22067991,90629.0,90624.0,0.23172656]
[1765285826395,0.23171677,90628.0,90626.0,0.22068721]
[1765285826599,0.01103411,90628.0,90625.0,0.22068864]
[1765285826759,0.01103411,90628.0,90625.0,0.23172312]
[1765285827107,0.01103411,90628.0,90624.0,0.23172656]
[1765285827108,0.01103411,90628.0,90624.0,0.0110346]
[1765285827313,0.01203399,90629.0,90625.0,0.23172198]
[1765285827556,0.01403399,90629.0,90625.0,0.23172198]
[1765285827773,0.23271615,90629.0,90626.0,0.22068608]
[1765285827998,0.23271615,90629.0,90627.0,0.22068454]
[1765285828215,0.23271615,90629.0,90626.0,0.23172044]
[1765285828216,0.002,90628.0,90626.0,0.23172044]
[1765285828445,0.002,90628.0,90626.0,0.22068705]
[1765285828928,0.003,90628.0,90627.0,0.22068478]
[1765285829384,0.002,90628.0,90627.0,0.22068478]
[1765285829511,0.003,90628.0,90627.0,0.22068478]
[1765285829938,0.01103375,90631.0,90627.0,0.22068478]
[1765285830176,0.01103375,90631.0,90629.0,0.22067891]
[1765285831160,0.003,90631.0,90630.0,0.22067747]
[1765285832396,0.004,90631.0,90630.0,0.22067747]
[1765285832579,0.001,90631.0,90630.0,0.22067747]
[1765285832781,0.003,90631.0,90630.0,0.22067747]
[1765285833193,0.004,90631.0,90630.0,0.22067747]
[1765285834743,0.004,90631.0,90628.0,0.01103411]
[1765285835137,0.22467549,90631.0,90628.0,0.23171458]
[1765285835501,0.22367563,90631.0,90629.0,0.22067991]
[1765285835703,0.22067563,90631.0,90629.0,0.22067991]
[1765285835903,0.23571122,90631.0,90626.0,0.01103436]
[1765285836220,0.23171134,90630.0,90627.0,0.23171896]
[1765285836457,0.22068046,90629.0,90627.0,0.23171896]
[1765285836595,0.22068014,90629.0,90627.0,0.23171849]
[1765285837010,0.23171134,90630.0,90627.0,0.23171849]
[1765285837627,0.002,90629.0,90628.0,0.22068234]
[1765285838255,0.002,90629.0,90627.0,0.00146243]
[1765285838615,0.22068234,90628.0,90627.0,0.00146243]
[1765285839030,0.22168189,90629.0,90627.0,0.00146243]
[1765285839231,0.001,90629.0,90627.0,0.00146243]
[1765285839451,0.23171203,90630.0,90627.0,0.22214484]
[1765285839660,0.22067995,90629.0,90627.0,0.00146243]
[1765285839960,0.003,90628.0,90627.0,0.00146243]
[1765285840121,0.001,90628.0,90627.0,0.00146243]
[1765285840509,0.001,90628.0,90627.0,0.22214721]
[1765285841170,0.002,90629.0,90628.0,0.22068234]
[1765285841324,0.002,90629.0,90628.0,0.22214477]
[1765285841763,0.01032303,90639.0,90636.0,0.01103314]
[1765285841961,0.01032303,90643.0,90642.0,0.22064826]
[1765285842164,0.56499934,90644.0,90642.0,0.22064826]
[1765285842410,0.01032303,90643.0,90641.0,0.23168257]
[1765285842616,0.01032303,90643.0,90642.0,0.22064826]
[1765285842817,0.23166718,90648.0,90645.0,0.22064017]
[1765285843033,0.01032102,90647.0,90645.0,0.22064017]
[1765285843182,0.23166748,90649.0,90646.0,0.22063852]
[1765285843183,0.52236312,90649.0,90646.0,0.22063852]
[1765285843390,0.01031875,90648.0,90646.0,0.22063852]
[1765285843709,0.01031875,90648.0,90647.0,0.22063609]
[1765285844287,0.01031676,90648.0,90647.0,0.22063609]
[1765285844487,0.2907,90651.0,90650.0,0.22062879]
[1765285844710,0.30101673,90651.0,90650.0,0.22062879]
[1765285844892,0.30101673,90651.0,90649.0,0.22063122]
[1765285845088,0.23165582,90652.0,90650.0,0.22062861]
[1765285845296,0.23165582,90652.0,90649.0,0.23166278]
[1765285845517,0.22062719,90651.0,90649.0,0.01103156]
[1765285845715,0.22062719,90651.0,90649.0,0.23166226]
[1765285845951,0.22062647,90651.0,90649.0,0.23166226]
[1765285846163,0.22062647,90651.0,90649.0,0.01103156]
[1765285846363,0.23165766,90651.0,90647.0,0.22063389]
[1765285846543,0.01103143,90650.0,90646.0,0.01103192]
[1765285846729,0.01103156,90649.0,90647.0,0.22063509]
[1765285846932,0.23166335,90649.0,90647.0,0.22063509]
[1765285847824,0.23166459,90650.0,90646.0,0.23166976]
[1765285847825,0.01103143,90650.0,90646.0,0.23166976]
[1765285848024,0.2206326,90649.0,90646.0,0.23166976]
[1765285848946,0.25,90640.0,90633.0,0.0110335]
[1765285849111,0.01103326,90635.0,90631.0,0.01103375]
[1765285849316,0.23170418,90633.0,90632.0,0.0174]
[1765285849993,0.0110335,90633.0,90632.0,0.0174]
[1765285850649,0.0110335,90633.0,90630.0,0.23171125]
[1765285851040,0.01103338,90634.0,90631.0,0.23170824]
[1765285851201,0.23170132,90634.0,90632.0,0.002]
[1765285851658,0.23170132,90634.0,90631.0,0.23170824]
[1765285851903,0.01103338,90634.0,90631.0,0.23170824]
[1765285852522,0.2206704,90633.0,90631.0,0.01103375]
[1765285852720,0.23170205,90634.0,90631.0,0.23170849]
[1765285852919,0.23170205,90634.0,90632.0,0.002]
[1765285853566,0.23170124,90634.0,90632.0,0.002]
[1765285853717,0.22067017,90633.0,90632.0,0.002]
[1765285853924,0.2316962,90636.0,90633.0,0.23170367]
[1765285854150,0.2316962,90636.0,90634.0,0.22066767]
[1765285854151,0.01103314,90636.0,90634.0,0.22066767]
[1765285854318,0.01103314,90636.0,90633.0,0.23170367]
[1765285854542,0.22065809,90638.0,90634.0,0.01103338]
[1765285854944,0.25,90640.0,90638.0,0.22065565]
[1765285854945,0.2907,90640.0,90638.0,0.22065565]
[1765285855145,0.2907,90640.0,90637.0,0.22065805]
[1765285855351,0.51135361,90640.0,90637.0,0.22065805]
[1765285855871,0.01103241,90642.0,90639.0,0.23168833]
[1765285856214,0.23168111,90642.0,90639.0,0.23168833]
[1765285856841,0.22065091,90641.0,90639.0,0.23168833]
[1765285857249,0.22065091,90641.0,90638.0,0.001]
[1765285857250,0.22065091,90641.0,90638.0,0.22165788]
[1765285857466,0.23167826,90643.0,90640.0,0.22065313]
[1765285858580,0.23167826,90643.0,90639.0,0.22065488]
[1765285858759,0.23167735,90644.0,90641.0,0.23168109]
[1765285858944,0.22064678,90643.0,90641.0,0.01103253]
[1765285859162,0.23167907,90643.0,90640.0,0.22065295]
[1765285860184,0.22064898,90642.0,90639.0,0.23168765]
[1765285860409,0.23167907,90643.0,90640.0,0.23168578]
[1765285860725,0.01103229,90643.0,90640.0,0.23168578]
[1765285861268,0.23168019,90644.0,90641.0,0.2316809]
[1765285862900,0.2316789,90643.0,90640.0,0.23168578]
[1765285863291,0.22064905,90642.0,90640.0,0.23168578]
[1765285863511,0.2316789,90643.0,90640.0,0.23168578]
[1765285864231,0.2316812,90642.0,90639.0,0.23168691]
[1765285864790,0.22065078,90641.0,90639.0,0.23168691]
[1765285865131,0.2316812,90642.0,90640.0,0.22065313]
[1765285865307,0.23167867,90643.0,90640.0,0.01103265]
[1765285865513,0.23167867,90643.0,90640.0,0.2316839]
[1765285865708,0.22064899,90642.0,90640.0,0.0111219]
[1765285865913,0.23167867,90643.0,90640.0,0.23177491]
[1765285866825,0.22064845,90642.0,90640.0,0.0111219]
[1765285867661,0.22065069,90641.0,90640.0,8.925e-05]
[1765285868338,0.23167842,90643.0,90640.0,8.925e-05]
[1765285868339,0.01103229,90643.0,90640.0,8.925e-05]
[1765285868544,0.22064826,90642.0,90640.0,8.925e-05]
[1765285869348,0.01103229,90643.0,90640.0,0.22074217]
[1765285869572,0.22064837,90642.0,90640.0,0.22174217]
[1765285869772,0.23168017,90643.0,90640.0,0.22174217]
[1765285870483,0.23168017,90643.0,90640.0,0.23277312]
[1765285870484,0.01103229,90643.0,90640.0,0.23277312]
[1765285870695,0.22065032,90642.0,90640.0,0.22074205]
[1765285870901,0.01103229,90643.0,90640.0,0.2317747]
[1765285871108,0.0110318,90647.0,90644.0,0.22064313]
[1765285871304,0.01103119,90652.0,90646.0,0.01103192]
[1765285871803,0.23165739,90652.0,90646.0,0.01249435]
[1765285872037,0.23165739,90652.0,90650.0,0.22062832]
[1765285872159,0.23165739,90652.0,90646.0,0.01249435]
[1765285872160,0.01103131,90651.0,90648.0,0.01103168]
[1765285872565,0.01103143,90650.0,90646.0,0.23313285]
[1765285872940,0.23166092,90650.0,90646.0,0.23313285]
[1765285873139,0.01103131,90651.0,90649.0,0.22063053]
[1765285873497,0.001,90652.0,90650.0,0.2206264]
[1765285873727,0.002,90652.0,90650.0,0.2206264]
[1765285873884,0.002,90652.0,90651.0,0.22062635]
[1765285874086,0.010316,90653.0,90651.0,0.22062635]
[1765285874296,0.02134695,90654.0,90651.0,0.23165766]
[1765285874871,0.001,90652.0,90651.0,0.23165766]
[1765285875069,0.003,90652.0,90650.0,0.01103143]
[1765285875351,0.001,90652.0,90650.0,0.01103143]
[1765285875517,0.2216245,90652.0,90649.0,0.23166038]
[1765285875718,0.23265569,90652.0,90649.0,0.23166038]
[1765285876122,0.01103131,90651.0,90646.0,0.10146243]
[1765285876304,0.01103156,90649.0,90646.0,0.11249435]
[1765285876782,0.01103156,90649.0,90647.0,0.220636]
[1765285877124,0.23166287,90649.0,90647.0,0.220636]
[1765285877318,0.01103143,90650.0,90647.0,0.220636]
[1765285877524,0.001,90649.0,90648.0,0.23166533]
[1765285877923,0.23165387,90653.0,90650.0,0.23165825]
[1765285879251,0.23165387,90653.0,90650.0,0.01103143]
[1765285879454,0.22062457,90652.0,90650.0,0.01103143]
[1765285880757,0.22262457,90652.0,90650.0,0.01103143]
[1765285881111,0.22362457,90652.0,90650.0,0.23166019]
[1765285881635,0.003,90652.0,90651.0,0.22062635]
[1765285882541,0.002,90652.0,90651.0,0.22062635]
[1765285882669,0.003,90652.0,90651.0,0.22062635]
[1765285883544,0.001,90652.0,90651.0,0.22062635]
[1765285883740,0.003,90652.0,90651.0,0.22062635]
[1765285893613,0.001,90652.0,90651.0,0.22062635]
[1765285894382,0.01103058,90657.0,90655.0,0.2206161]
[1765285894706,0.23164255,90657.0,90655.0,0.2206161]
[1765285894899,0.23164195,90658.0,90655.0,0.23164693]
[1765285895202,0.01103058,90657.0,90653.0,0.22061918]
[1765285895450,0.2206159,90656.0,90654.0,0.24268016]
[1765285895737,0.23264426,90657.0,90654.0,0.23164921]
[1765285895942,0.2206161,90656.0,90654.0,0.01103095]
[1765285896169,0.23264426,90657.0,90654.0,0.23164818]
[1765285896355,0.23164426,90657.0,90654.0,0.23164818]
[1765285896688,0.001,90656.0,90655.0,0.22061662]
[1765285896939,0.01031162,90659.0,90657.0,0.22061119]
[1765285897153,0.2907,90660.0,90657.0,0.23164177]
[1765285897464,0.01031162,90659.0,90658.0,0.22060932]
[1765285898125,0.01102973,90664.0,90659.0,0.23163722]
[1765285898126,0.23162795,90663.0,90659.0,0.23163722]
[1765285898291,0.23162795,90663.0,90654.0,0.0174]
[1765285898292,0.01103058,90657.0,90654.0,0.0174]
[1765285898660,0.23263924,90659.0,90656.0,0.22061212]
[1765285898808,0.001,90656.0,90654.0,0.24904517]
[1765285899010,0.22061246,90657.0,90654.0,0.24904517]
[1765285899387,0.01203058,90657.0,90654.0,0.02843095]
[1765285899584,0.01203058,90657.0,90654.0,0.23801891]
[1765285899585,0.22061535,90656.0,90654.0,0.23801891]
[1765285899698,0.23164333,90657.0,90654.0,0.0174]
[1765285899905,0.001,90656.0,90654.0,0.0174]
[1765285900108,0.22061662,90655.0,90654.0,0.0174]
[1765285901355,0.22161275,90657.0,90654.0,0.02843095]
[1765285901561,0.22161275,90657.0,90655.0,0.22061595]
[1765285901764,0.22061492,90656.0,90654.0,0.24904785]
[1765285902177,0.001,90655.0,90654.0,0.24904785]
[1765285902376,0.22061492,90656.0,90654.0,0.24904785]
[1765285902574,0.22061492,90656.0,90654.0,0.0174]
[1765285902775,0.22061662,90655.0,90654.0,0.0174]
[1765285903110,0.22061492,90656.0,90654.0,0.0174]
[1765285903238,0.001,90655.0,90654.0,0.0174]
[1765285903662,0.001,90655.0,90654.0,0.23948148]
[1765285917594,0.22161662,90655.0,90654.0,0.01886243]
[1765285917779,0.01103107,90653.0,90652.0,0.0174]
[1765285917923,0.01103156,90649.0,90646.0,0.1]
[1765285918130,0.22063609,90647.0,90646.0,0.1]
[1765285918329,0.61747935,90647.0,90646.0,0.1]
[1765285918529,0.65064393,90647.0,90646.0,0.1]
[1765285918713,0.65064393,90647.0,90646.0,0.09968]
[1765285918714,0.57690711,90647.0,90646.0,0.09968]
[1765285919015,0.57690347,90647.0,90646.0,0.09968]
[1765285919421,0.57790347,90647.0,90646.0,0.09968]
[1765285920774,0.57690347,90647.0,90646.0,0.09968]
[1765285921011,0.57790347,90647.0,90646.0,0.09968]
[1765285921657,0.57890347,90647.0,90646.0,0.09968]
[1765285931271,0.56858855,90647.0,90646.0,0.09968]
[1765285931928,0.57887657,90647.0,90646.0,0.09968]
[1765285932144,0.56858855,90647.0,90646.0,0.09968]
[1765285933725,1.19730929,90647.0,90646.0,0.09968]
[1765285933923,1.25983228,90647.0,90646.0,0.09968]
[1765285934954,1.25883228,90647.0,90646.0,0.09968]
[1765285935157,1.25783228,90647.0,90646.0,0.09968]
[1765285935358,1.25883228,90647.0,90646.0,0.09968]
[1765285935975,1.27723228,90647.0,90646.0,0.09968]
[1765285936317,1.27823228,90647.0,90646.0,0.09968]
[1765285940461,0.70077441,90647.0,90646.0,0.09968]
[1765285940597,0.54750067,90647.0,90646.0,0.09968]
[1765285940800,0.25680067,90647.0,90646.0,0.09968]
[1765285941032,0.22363609,90647.0,90646.0,0.09968]
[1765285941442,0.22263609,90647.0,90646.0,0.09968]
[1765285941604,0.22063609,90647.0,90646.0,0.09968]
[1765285942054,0.51133609,90647.0,90646.0,0.09968]
[1765285947205,0.52164265,90647.0,90646.0,0.09968]
[1765285964720,0.30100656,90647.0,90646.0,0.09968]
[1765285964980,0.23094265,90647.0,90646.0,0.09968]
[1765285965166,0.22063609,90647.0,90646.0,0.09968]
[1765285967300,0.23095922,90647.0,90646.0,0.09968]
[1765285973362,0.23096946,90647.0,90646.0,0.09968]
[1765285982620,0.01033337,90647.0,90646.0,0.32031852]
[1765285982822,0.02208788,90651.0,90646.0,0.09968]
[1765285982823,0.01103156,90649.0,90646.0,0.09968]
[1765285983062,0.01033337,90649.0,90646.0,0.11217435]
[1765285983281,0.22063099,90650.0,90647.0,0.22063367]
[1765285983456,0.01033337,90649.0,90647.0,0.22063367]
[1765285984440,0.22063609,90647.0,90646.0,0.10114243]
[1765285984635,0.23096946,90647.0,90646.0,0.10114243]
[1765285988628,0.23096946,90647.0,90646.0,0.09968]
[1765285989091,0.25305734,90647.0,90646.0,0.09968]
[1765285990986,0.25305734,90647.0,90646.0,4.09968]
[1765285991200,0.23296946,90647.0,90646.0,4.09968]
[1765285991621,0.25305734,90647.0,90646.0,4.09968]
[1765285993376,0.54375734,90647.0,90646.0,4.09968]
[1765285993578,0.52166946,90647.0,90646.0,4.09968]
[1765286000042,0.30103337,90647.0,90646.0,4.10114243]
[1765286000228,0.52166946,90647.0,90646.0,4.10114243]
[1765286003165,0.23096946,90647.0,90646.0,4.10114243]
[1765286003755,0.01033337,90647.0,90646.0,4.10114243]
[1765286004161,0.23096946,90647.0,90646.0,4.10114243]
[1765286008929,0.25305734,90647.0,90646.0,4.10114243]
[1765286009130,0.54375734,90647.0,90646.0,4.10114243]
[1765286012387,0.57691748,90647.0,90646.0,4.10114243]
[1765286016216,0.5548296,90647.0,90646.0,4.10114243]
[1765286027843,0.55483751,90647.0,90646.0,4.1008403]
[1765286028210,0.55483751,90647.0,90646.0,4.09937787]
[1765286041718,0.58865851,90647.0,90646.0,4.09937787]
[1765286042723,0.6511815,90647.0,90646.0,4.09937787]
[1765286043915,1.0666285,90647.0,90646.0,4.09937787]
[1765286046426,1.0686285,90647.0,90646.0,4.09937787]
[1765286061230,1.06861285,90647.0,90646.0,4.09937787]
[1765286063640,1.06661285,90647.0,90646.0,4.09937787]
[1765286064734,1.06961285,90647.0,90646.0,4.09937787]
[1765286066346,1.06661285,90647.0,90646.0,4.09937787]
[1765286066648,1.06961285,90647.0,90646.0,4.09937787]
[1765286066849,1.06661285,90647.0,90646.0,4.09937787]
[1765286067270,1.06961285,90647.0,90646.0,4.09937787]
[1765286073080,1.07261285,90647.0,90646.0,4.09937787]
[1765286074659,1.06961285,90647.0,90646.0,4.09937787]
[1765286074862,1.07161285,90647.0,90646.0,4.09937787]
[1765286078643,1.10138787,90647.0,90646.0,4.09937787]
[1765286079327,1.12396384,90647.0,90646.0,4.09937787]
[1765286079532,1.09418882,90647.0,90646.0,4.09937787]
[1765286079877,1.07161285,90647.0,90646.0,4.09937787]
[1765286081067,1.10140188,90647.0,90646.0,4.09937787]
[1765286084372,1.10139569,90647.0,90646.0,4.09937787]
[1765286086374,1.07161285,90647.0,90646.0,4.09937787]
[1765286093604,1.10138855,90647.0,90646.0,4.09937787]
[1765286097019,1.07161285,90647.0,90646.0,4.09937787]
[1765286098754,1.10139001,90647.0,90646.0,4.09937787]
[1765286099093,1.07161285,90647.0,90646.0,4.09937787]
[1765286099527,1.07161285,90647.0,90646.0,4.11937787]
[1765286101896,1.08370617,90647.0,90646.0,4.1208403]
[1765286102100,1.06161829,90647.0,90646.0,4.1208403]
[1765286102506,1.08370617,90647.0,90646.0,4.1208403]
[1765286103966,0.5836483,90647.0,90646.0,4.1208403]
[1765286104383,0.26912186,90647.0,90646.0,4.1208403]
[1765286104581,0.04848577,90647.0,90646.0,4.1208403]
[1765286104798,0.03816014,90647.0,90646.0,4.34147882]
[1765286105224,0.005,90647.0,90646.0,4.34147882]
[1765286105432,0.003,90647.0,90646.0,4.34147882]
[1765286105636,0.003,90647.0,90646.0,4.35251074]
[1765286105637,0.002,90647.0,90646.0,4.35251074]
[1765286105998,0.003,90647.0,90646.0,4.35251074]
[1765286106204,0.001,90647.0,90646.0,4.35251074]
[1765286106388,0.03315695,90655.0,90653.0,0.22062134]
[1765286106593,0.03315695,90655.0,90654.0,0.22061905]
[1765286106887,0.03315695,90655.0,90653.0,0.22208377]
[1765286107429,0.32385695,90655.0,90653.0,0.22208377]
[1765286107635,0.32385695,90655.0,90654.0,0.22061905]
[1765286108408,0.03315695,90655.0,90654.0,0.22061905]
[1765286109555,0.03315695,90655.0,90653.0,0.00146243]
[1765286109556,0.03315695,90655.0,90653.0,0.22208374]
[1765286110068,0.03315695,90655.0,90654.0,0.22061905]
[1765286111054,0.2907,90659.0,90656.0,0.2206136]
[1765286111055,0.30173034,90659.0,90656.0,0.2206136]
[1765286111332,0.30173034,90659.0,90656.0,0.2316443]
[1765286111632,0.03315651,90658.0,90657.0,0.22061134]
[1765286111974,0.03315651,90658.0,90656.0,0.01249313]
[1765286112414,0.03315651,90658.0,90657.0,0.22061175]
[1765286112982,0.03315651,90658.0,90657.0,0.22261175]
[1765286113733,0.03285787,90658.0,90657.0,0.22261175]
[1765286113953,0.03285787,90658.0,90657.0,0.002]
[1765286114155,0.25346719,90658.0,90657.0,0.002]
[1765286115823,0.54416719,90658.0,90657.0,0.002]
[1765286116232,0.32355787,90658.0,90657.0,0.002]
[1765286116438,0.54416719,90658.0,90657.0,0.002]
[1765286117191,0.32355787,90658.0,90657.0,0.002]
[1765286118605,0.54416719,90658.0,90657.0,0.002]
[1765286119097,0.32355787,90658.0,90657.0,0.002]
[1765286119297,0.54416719,90658.0,90657.0,0.002]
[1765286132272,0.55450252,90658.0,90657.0,0.002]
[1765286132877,0.52164465,90658.0,90657.0,0.002]
[1765286133081,0.53267596,90658.0,90657.0,0.002]
[1765286145205,1.17046783,90658.0,90657.0,0.002]
[1765286145523,1.19431969,90658.0,90657.0,0.002]
[1765286145725,0.58385364,90647.0,90646.0,4.11937787]
[1765286145893,2.61158897,90647.0,90646.0,4.11937787]
[1765286146092,2.63544083,90647.0,90646.0,4.11937787]
[1765286146292,2.66860918,90647.0,90646.0,4.11937787]
[1765286146648,2.69838172,90647.0,90646.0,4.11937787]
[1765286147451,2.66860918,90647.0,90646.0,4.11937787]
[1765286147615,2.32197618,90647.0,90646.0,4.11937787]
[1765286148152,0.86124618,90647.0,90646.0,4.11937787]
[1765286148376,0.86424618,90647.0,90646.0,4.11937787]
[1765286148566,0.86624618,90647.0,90646.0,4.11937787]
[1765286150994,0.8662269,90647.0,90646.0,4.11937787]
[1765286151490,0.84237504,90647.0,90646.0,4.11937787]
[1765286155752,0.53150404,90647.0,90646.0,4.11937787]
[1765286155963,0.52150948,90647.0,90646.0,4.11937787]
[1765286156184,0.81220948,90647.0,90646.0,4.11937787]
[1765286157047,0.80720948,90647.0,90646.0,4.11937787]
[1765286157429,0.77944948,90647.0,90646.0,4.11937787]
[1765286158011,0.57422049,90647.0,90646.0,4.1208403]
[1765286158206,0.27320444,90647.0,90646.0,4.1208403]
[1765286158586,0.54650444,90647.0,90646.0,4.1208403]
[1765286159938,0.03516835,90647.0,90646.0,4.1208403]
[1765286160165,0.22263609,90647.0,90646.0,4.1208403]
[1765286163406,0.002,90647.0,90646.0,4.1208403]
[1765286163609,0.22263609,90647.0,90646.0,4.1208403]
[1765286164463,0.002,90647.0,90646.0,4.1208403]
[1765286164762,0.002,90647.0,90646.0,4.34147882]
[1765286166644,0.001,90647.0,90646.0,4.34147882]
[1765286166827,0.2907,90656.0,90654.0,0.22061682]
[1765286167166,0.32385549,90658.0,90656.0,0.22061347]
[1765286167394,0.32385549,90658.0,90657.0,0.22061175]
[1765286167529,0.01256094,90666.0,90657.0,0.22061175]
[1765286167530,0.01256094,90666.0,90661.0,0.22060082]
[1765286167729,0.22059532,90664.0,90662.0,0.01102997]
[1765286167954,0.22059532,90664.0,90661.0,0.23163092]
[1765286167955,0.23162505,90664.0,90661.0,0.23163092]
[1765286168359,0.22059718,90663.0,90661.0,0.0110301]
[1765286168923,0.23162505,90664.0,90658.0,0.01103046]
[1765286168924,0.01102997,90662.0,90658.0,0.01103046]
[1765286169326,0.01102997,90662.0,90658.0,0.01249289]
[1765286169582,0.23163431,90662.0,90659.0,0.22060563]
[1765286169878,0.23163328,90661.0,90658.0,0.2331021]
[1765286170458,0.01102961,90665.0,90662.0,0.22059881]